bitfinex/quotes_ETHUSD_20240711
["timestamp","ask_amount","ask_price","bid_price","bid_amount"]
[1720729232873,3.0,3107.6,3106.6,0.24048]
[1720729233076,0.40712693,3107.7,3106.6,0.24048]
[1720729233077,1.11475942,3107.5,3106.6,0.24048]
[1720729233292,3.40712693,3107.7,3106.6,0.24048]
[1720729233293,3.56742109,3107.7,3106.6,0.24048]
[1720729233471,1.11474945,3107.6,3106.6,0.24048]
[1720729233810,1.11474945,3107.5,3106.7,0.586432]
[1720729234018,1.11474945,3107.4,3106.7,0.586432]
[1720729234195,0.56742109,3107.7,3106.7,0.586432]
[1720729234407,1.11468981,3107.6,3106.7,0.586432]
[1720729234571,1.11468981,3107.5,3106.7,0.586432]
[1720729234770,1.11468981,3107.4,3106.7,0.586432]
[1720729235007,1.11468981,3107.6,3106.7,0.586432]
[1720729235217,1.11468981,3107.5,3106.7,0.586432]
[1720729235418,1.11473601,3107.4,3106.7,0.586432]
[1720729235624,1.11473601,3107.3,3106.7,0.586432]
[1720729235914,0.56742109,3107.7,3106.7,0.586432]
[1720729236068,1.11471249,3107.6,3106.7,0.586432]
[1720729236275,1.11471249,3107.5,3106.7,0.586432]
[1720729236496,1.1147217,3107.4,3106.7,0.586432]
[1720729236694,1.1147217,3107.3,3106.7,0.586432]
[1720729236910,0.56742109,3107.7,3106.7,0.586432]
[1720729236911,1.1147217,3107.6,3106.7,0.586432]
[1720729237119,1.11473766,3107.5,3106.8,0.4045842]
[1720729237420,1.11473766,3107.4,3106.8,0.4045842]
[1720729237580,1.11473766,3107.3,3106.8,0.4045842]
[1720729237790,0.40712693,3107.7,3106.8,0.4045842]
[1720729238088,1.33655616,3107.5,3106.5,2.4048]
[1720729238421,2.45129216,3107.4,3106.5,2.4048]
[1720729238622,1.114736,3107.3,3106.5,2.4048]
[1720729238981,2.45129216,3107.3,3106.5,2.4048]
[1720729239310,2.45129216,3107.2,3106.5,2.4048]
[1720729239513,1.65986522,3107.1,3106.5,2.4048]
[1720729239808,1.114736,3107.0,3106.5,2.4048]
[1720729240018,4.114736,3107.0,3106.5,2.4048]
[1720729240224,3.0,3107.0,3106.5,2.4048]
[1720729240514,1.11489004,3106.9,3106.5,2.4048]
[1720729240696,1.11489004,3106.8,3106.5,2.4048]
[1720729240895,1.11489004,3107.0,3106.5,2.4048]
[1720729241615,1.33655616,3107.2,3106.5,2.4048]
[1720729241774,1.11484274,3107.1,3106.5,2.4048]
[1720729241970,1.11484274,3107.0,3106.5,2.4048]
[1720729242209,2.4513989,3107.3,3106.5,2.4048]
[1720729242375,1.65999697,3107.2,3106.5,2.4048]
[1720729242578,1.11485708,3107.1,3106.5,2.4048]
[1720729243108,4.11485708,3107.1,3106.5,2.4048]
[1720729243286,1.11485708,3107.0,3106.5,2.4048]
[1720729243604,1.11488074,3106.9,3106.5,2.4048]
[1720729243806,1.11488074,3106.8,3106.5,2.4048]
[1720729244119,3.0,3107.2,3106.5,2.64528]
[1720729244323,1.11481686,3107.1,3106.5,2.64528]
[1720729244526,4.33655616,3107.5,3106.5,2.64528]
[1720729244724,1.11479207,3107.4,3106.5,2.64528]
[1720729244901,1.11479207,3107.3,3106.5,2.64528]
[1720729245103,1.11479207,3107.3,3106.6,0.586438]
[1720729245724,1.11479207,3107.2,3106.6,0.586438]
[1720729245887,4.33655616,3107.5,3106.6,0.586438]
[1720729246092,1.11477441,3107.4,3106.6,0.586438]
[1720729246310,1.11477441,3107.3,3106.6,0.586438]
[1720729246628,1.11476838,3107.2,3106.7,0.3231718]
[1720729246803,4.33655616,3107.5,3106.7,0.3231718]
[1720729246988,1.11477614,3107.4,3106.7,0.3231718]
[1720729247192,1.11477614,3107.3,3106.7,0.3231718]
[1720729247386,1.11477614,3107.2,3106.7,0.3231718]
[1720729247604,4.33655616,3107.5,3106.7,0.3231718]
[1720729247807,1.11477501,3107.4,3106.7,0.3231718]
[1720729247998,1.11477501,3107.3,3106.7,0.3231718]
[1720729248218,1.11477501,3107.2,3106.7,0.3231718]
[1720729248429,4.33655616,3107.4,3106.7,0.3231718]
[1720729248624,1.114775,3107.3,3106.7,0.3231718]
[1720729248928,1.114775,3107.2,3106.7,0.3231718]
[1720729249120,1.33655616,3107.4,3106.7,0.3231718]
[1720729249297,1.11477046,3107.3,3106.7,0.3231718]
[1720729249498,1.11477046,3107.2,3106.7,0.3231718]
[1720729249714,1.33655616,3107.4,3106.7,0.3231718]
[1720729249899,1.11476883,3107.3,3106.7,0.3231718]
[1720729250244,1.11476883,3107.2,3106.7,0.3231718]
[1720729250400,1.11476883,3107.4,3106.8,2.87668338]
[1720729250595,1.33655616,3107.6,3106.8,2.87668338]
[1720729250901,1.11471936,3107.5,3106.8,2.87668338]
[1720729251101,1.33655616,3107.7,3106.9,0.96374652]
[1720729251289,1.11463993,3107.6,3106.9,0.96374652]
[1720729251493,2.08022643,3107.9,3106.9,0.96374652]
[1720729251494,1.33655616,3107.7,3106.9,0.96374652]
[1720729251795,2.45120753,3107.6,3106.8,2.87668338]
[1720729252006,1.11465137,3107.5,3106.8,2.87668338]
[1720729252397,1.11465137,3107.6,3106.8,2.87668338]
[1720729252852,2.45120753,3107.6,3106.8,2.87668338]
[1720729253015,1.11465137,3107.5,3106.8,2.87668338]
[1720729253500,4.33655616,3107.7,3106.8,2.87668338]
[1720729253501,2.45120753,3107.6,3106.8,2.87668338]
[1720729253705,1.11465137,3107.5,3106.8,2.4574]
[1720729254036,4.11465137,3107.5,3106.8,2.4574]
[1720729254197,1.11465137,3107.4,3106.8,2.4574]
[1720729255103,3.0,3107.5,3106.8,2.4574]
[1720729255302,1.11471645,3107.4,3106.8,2.4574]
[1720729255599,1.33791461,3107.6,3106.8,2.4574]
[1720729255806,1.11472413,3107.5,3106.8,2.4574]
[1720729256021,1.11472413,3107.4,3106.8,2.4574]
[1720729256194,1.33791461,3107.6,3106.8,2.4574]
[1720729256416,1.11470962,3107.5,3106.8,2.4574]
[1720729256606,1.11470962,3107.4,3106.8,2.4574]
[1720729257024,1.11470962,3107.4,3106.3,1.6802736]
[1720729257025,1.33791461,3107.3,3106.2,2.2667]
[1720729257197,2.45262423,3107.2,3106.2,2.2667]
[1720729257399,1.33791461,3107.0,3106.2,2.2667]
[1720729257898,0.41250739,3107.1,3106.2,2.2667]
[1720729257899,2.45287675,3106.9,3106.2,2.2667]
[1720729258116,2.45287675,3106.8,3106.2,2.2667]
[1720729258332,1.11496214,3106.7,3106.2,2.2667]
[1720729258512,1.11505363,3106.6,3106.2,2.2667]
[1720729258834,1.11505363,3106.5,3106.2,2.2667]
[1720729259249,4.33659534,3106.7,3106.2,2.2667]
[1720729259455,1.11508313,3106.6,3106.2,2.2667]
[1720729259759,3.0,3106.8,3106.2,2.2667]
[1720729259935,1.11497691,3106.7,3106.2,2.49337]
[1720729260120,4.33659534,3107.3,3106.3,0.06437436]
[1720729260317,1.11483656,3107.2,3106.3,3.2192]
[1720729260571,1.33659534,3107.6,3106.5,2.4442]
[1720729260857,1.11473808,3107.5,3106.6,0.85766336]
[1720729261055,10.7074,3108.1,3106.6,0.85766336]
[1720729261352,1.33679142,3107.6,3106.6,0.85766336]
[1720729261527,1.11471904,3108.0,3106.6,0.85766336]
[1720729261528,2.45151046,3107.5,3106.6,0.85766336]
[1720729261851,2.45151046,3107.4,3106.5,2.4442]
[1720729262055,1.11471904,3107.3,3106.5,2.4442]
[1720729262255,2.45151046,3107.4,3106.5,2.4442]
[1720729262418,2.45151046,3107.3,3106.5,2.4442]
[1720729262623,1.11471904,3107.2,3106.5,2.4442]
[1720729262821,2.45151046,3107.2,3106.5,2.4442]
[1720729263174,3.0,3107.3,3106.6,3.21893]
[1720729263325,1.33679142,3107.6,3106.6,3.21893]
[1720729263326,3.0,3107.6,3106.8,3.21874]
[1720729263523,3.0,3107.8,3106.9,2.4442]
[1720729263742,1.11460086,3107.7,3106.9,2.4442]
[1720729263949,4.33679142,3108.0,3106.9,2.4442]
[1720729264252,1.11459228,3107.9,3107.0,0.63708704]
[1720729264562,4.33679142,3108.0,3107.0,0.63708704]
[1720729264725,1.33679142,3108.2,3107.2,2.3919]
[1720729264922,1.33679142,3108.3,3107.2,2.45625059]
[1720729265125,1.11449337,3108.2,3107.3,0.56746706]
[1720729265373,1.11449337,3108.1,3107.3,0.56746706]
[1720729265553,1.11449337,3108.2,3107.3,0.56746706]
[1720729265859,1.11449337,3108.1,3107.3,0.56746706]
[1720729266023,1.33679142,3108.4,3107.3,0.56746706]
[1720729266225,1.11446146,3108.3,3107.4,0.61776871]
[1720729266529,1.11446146,3108.2,3107.4,0.61776871]
[1720729266752,4.33679142,3108.4,3107.4,0.61776871]
[1720729266943,4.11446311,3108.3,3107.4,0.61776871]
[1720729267263,1.11448289,3108.2,3107.4,0.61776871]
[1720729267463,4.33679142,3108.4,3107.4,0.61776871]
[1720729267626,3.23516655,3108.3,3107.2,2.3919]
[1720729267837,1.33679142,3108.1,3107.2,2.3919]
[1720729268229,1.11459549,3108.0,3107.2,2.3919]
[1720729268441,3.0,3108.2,3107.2,2.3919]
[1720729268442,4.33679142,3108.2,3107.2,2.3919]
[1720729268628,1.11456058,3108.1,3107.2,2.3919]
[1720729268858,1.35955406,3108.0,3107.2,2.3919]
[1720729269066,1.11456058,3107.9,3107.2,2.3919]
[1720729271583,4.58036773,3108.0,3107.2,2.3919]
[1720729271767,1.11464407,3107.8,3107.2,2.3919]
[1720729271950,3.0,3107.9,3107.2,2.3919]
[1720729272150,1.57267737,3107.8,3106.8,2.3342]
[1720729272351,1.1146406,3107.7,3106.8,2.3342]
[1720729274875,0.45803677,3107.8,3106.8,2.3342]
[1720729275190,3.45803677,3107.8,3106.8,2.3342]
[1720729275411,4.58028873,3108.0,3106.8,2.3342]
[1720729275676,3.0,3107.7,3106.8,2.3342]
[1720729275980,4.33529525,3108.0,3106.8,2.3342]
[1720729276160,1.11462859,3107.9,3106.8,2.3342]
[1720729276477,1.11462859,3107.8,3106.9,0.555304]
[1720729276696,1.11462859,3107.9,3106.9,0.555304]
[1720729276842,1.11462859,3107.8,3106.8,2.3342]
[1720729277207,4.11912879,3107.8,3106.8,2.3342]
[1720729277342,5.44992384,3107.7,3106.8,2.3342]
[1720729277708,4.11473616,3107.6,3106.8,2.3342]
[1720729277983,1.33529525,3107.7,3106.3,2.4712]
[1720729277984,2.99503455,3107.5,3106.3,2.4712]
[1720729278202,1.88029839,3107.5,3107.1,0.00081863]
[1720729278365,1.33434292,3107.3,3107.1,0.00081863]
[1720729278557,2.44919635,3107.2,3107.1,0.00081863]
[1720729278881,2.4091,3107.1,3105.9,2.4712]
[1720729279061,2.4091,3107.1,3105.6,0.00082467]
[1720729279062,5.72244187,3107.0,3105.6,0.00082467]
[1720729279252,1.3343591,3106.8,3105.6,0.00082467]
[1720729279447,2.44921253,3106.7,3105.6,0.00082467]
[1720729279682,4.66792865,3106.9,3105.6,0.00082467]
[1720729279683,1.11485343,3106.6,3105.6,0.00082467]
[1720729279889,2.44921253,3106.7,3105.6,0.00082467]
[1720729280186,1.52656755,3106.6,3105.6,0.00082467]
[1720729280477,3.41171412,3106.6,3105.6,0.00082467]
[1720729280688,1.11513474,3106.5,3105.6,0.00082467]
[1720729280888,3.0,3106.5,3105.6,0.00082467]
[1720729281252,0.41171412,3106.6,3105.6,0.00082467]
[1720729281470,0.47460732,3106.5,3105.6,0.00082467]
[1720729283308,1.11522258,3106.4,3105.6,0.00082467]
[1720729283459,3.0,3106.4,3105.6,0.00082467]
[1720729283885,3.47460732,3106.5,3105.6,0.00082467]
[1720729284090,6.60865004,3106.4,3105.6,0.00082467]
[1720729284299,2.12359578,3106.3,3105.6,0.00082467]
[1720729284529,4.00832574,3106.3,3105.6,0.00082467]
[1720729284735,3.21958,3106.0,3105.6,0.00082467]
[1720729284934,3.0,3105.9,3105.6,0.00082467]
[1720729285617,3.0,3106.0,3105.6,0.00082467]
[1720729286073,5.299,3106.2,3105.6,0.00082467]
[1720729286270,0.63073257,3106.1,3105.6,0.00082467]
[1720729286689,3.0,3106.3,3105.6,0.00082467]
[1720729289293,0.1646726,3106.4,3105.6,0.00082467]
[1720729289493,3.21916,3106.4,3105.6,0.00082467]
[1720729289731,3.0,3106.3,3105.6,0.00082467]
[1720729289891,3.47460732,3106.5,3105.6,0.00082467]
[1720729290219,0.89926273,3106.4,3105.6,0.00082467]
[1720729291230,3.63321286,3106.5,3105.7,2.4144]
[1720729291537,3.0,3106.5,3105.7,2.4144]
[1720729291688,0.275,3106.8,3105.7,2.4144]
[1720729291892,0.33680564,3106.7,3105.7,2.4144]
[1720729293011,0.33680564,3106.7,3105.7,5.63427]
[1720729293214,0.33680564,3106.7,3105.8,3.21973]
[1720729293488,0.33680564,3106.7,3106.0,2.4144]
[1720729293695,0.275,3106.8,3106.0,2.4144]
[1720729294417,0.275,3106.8,3106.0,5.63395]
[1720729294741,0.275,3106.8,3106.3,3.21917]
[1720729294886,0.275,3106.8,3106.3,6.43835]
[1720729295219,0.275,3106.8,3106.4,0.889165]
[1720729297553,0.275,3106.8,3106.5,0.06436885]
[1720729297723,0.275,3106.8,3106.6,2.386]
[1720729302128,0.275,3106.8,3106.2,2.3024]
[1720729302523,0.275,3106.8,3105.9,0.64396]
[1720729302721,0.275,3106.8,3105.8,9.8234]
[1720729305462,0.275,3106.8,3105.6,0.00082467]
[1720729306341,1.11514263,3106.7,3105.6,0.00082467]
[1720729306542,0.275,3106.8,3105.6,0.00082467]
[1720729306950,1.11514547,3106.7,3105.6,0.00082467]
[1720729307150,1.11515355,3106.6,3105.6,0.00082467]
[1720729307360,0.275,3106.8,3105.6,0.00082467]
[1720729307557,1.76451568,3106.7,3105.6,0.00082467]
[1720729307756,0.64937,3106.7,3105.6,0.00082467]
[1720729308281,1.11513452,3106.6,3105.6,0.00082467]
[1720729308585,0.64937,3106.7,3105.6,0.00082467]
[1720729308780,1.11514592,3106.6,3105.6,0.00082467]
[1720729308941,0.20395159,3106.6,3105.6,0.23292714]
[1720729309142,0.64937,3106.7,3105.6,0.23292714]
[1720729310152,1.11513433,3106.6,3105.6,0.23292714]
[1720729310353,0.64937,3106.7,3105.6,0.23292714]
[1720729311882,0.64937,3106.7,3105.6,3.45290714]
[1720729312086,0.275,3106.8,3105.6,3.45290714]
[1720729312382,0.275,3106.8,3105.7,2.45]
[1720729316383,1.11509124,3106.7,3105.7,2.45]
[1720729316584,1.11509124,3106.6,3105.7,2.45]
[1720729316880,3.275,3106.8,3105.7,2.45]
[1720729317059,1.67250124,3106.7,3105.7,2.45]
[1720729317264,1.11510124,3106.6,3105.7,2.45]
[1720729317461,0.5574,3106.7,3105.7,2.45]
[1720729317789,1.11511249,3106.6,3105.7,2.45]
[1720729318104,1.11511249,3106.5,3105.7,2.45]
[1720729318252,1.11511249,3106.6,3105.7,2.45]
[1720729318446,1.282376,3106.5,3105.7,2.45]
[1720729318651,0.16725125,3106.5,3105.7,2.45]
[1720729318882,0.5574,3106.7,3105.7,2.45]
[1720729319185,1.1151329,3106.6,3105.7,2.45]
[1720729319349,1.1151329,3106.5,3105.7,2.45]
[1720729319551,1.1151329,3106.6,3105.7,2.45]
[1720729319889,1.4983729,3106.6,3105.7,2.45]
[1720729320088,1.4983729,3106.6,3105.6,0.00082467]
[1720729320089,3.21923,3106.4,3105.6,0.00082467]
[1720729320295,3.21968,3105.9,3105.6,0.00082467]
[1720729320450,2.299,3105.7,3105.6,0.00082467]
[1720729320652,3.41422879,3105.7,3104.6,2.3003]
[1720729320848,1.11522879,3105.6,3104.6,2.3003]
[1720729321162,4.11522879,3105.6,3104.6,2.3003]
[1720729321464,4.75665167,3105.5,3104.6,2.3003]
[1720729321771,1.11522879,3105.4,3104.6,2.3003]
[1720729322674,3.64142288,3105.5,3104.6,2.3003]
[1720729323005,1.11558118,3105.4,3104.6,2.2003]
[1720729323360,0.64142288,3105.5,3104.6,2.2003]
[1720729324082,3.0,3105.9,3104.6,2.2003]
[1720729324284,5.299,3106.1,3104.6,2.2003]
[1720729324485,4.11544331,3106.0,3104.6,2.2003]
[1720729324674,3.0,3106.0,3104.6,5.42127]
[1720729324991,3.0,3106.3,3104.7,0.55]
[1720729325190,1.1153534,3106.2,3104.8,3.28512338]
[1720729325373,2.91102724,3106.5,3104.9,4.15421234]
[1720729325551,1.11528286,3106.4,3105.0,3.22059]
[1720729325884,2.91102724,3106.5,3105.1,0.55]
[1720729326088,2.91102724,3106.5,3105.2,2.3902]
[1720729326453,1.11523049,3106.4,3105.2,2.3902]
[1720729326654,1.51785626,3106.3,3105.2,2.3902]
[1720729326874,1.11533306,3106.2,3105.2,2.3902]
[1720729327103,0.40262577,3106.3,3105.2,2.3902]
[1720729327405,1.11532648,3106.2,3105.2,2.3902]
[1720729327605,0.56262577,3106.3,3105.2,2.3902]
[1720729327817,0.67817958,3106.2,3105.2,2.62922]
[1720729331282,1.11530827,3106.1,3105.2,2.3902]
[1720729331507,1.11530827,3106.0,3105.2,2.3902]
[1720729331804,0.67817958,3106.2,3105.2,2.3902]
[1720729331974,1.11537085,3106.1,3105.2,2.3902]
[1720729332175,1.29472589,3106.0,3105.2,2.3902]
[1720729332491,1.11537085,3105.9,3105.2,2.3902]
[1720729333281,0.17935504,3106.0,3105.2,2.3902]
[1720729333783,1.11540526,3105.9,3105.2,2.3902]
[1720729333985,0.17935504,3106.0,3105.2,2.3902]
[1720729334176,1.11538917,3105.9,3105.2,2.3902]
[1720729334381,0.17935504,3106.0,3105.2,2.3902]
[1720729334579,1.11538342,3105.9,3105.2,2.3902]
[1720729334780,4.78665527,3105.8,3104.5,2.3902]
[1720729334981,4.11538342,3105.7,3104.5,2.3902]
[1720729335286,6.63445342,3105.6,3104.5,2.3902]
[1720729335606,6.63445342,3105.6,3104.1,0.00081783]
[1720729335607,3.2204,3105.2,3104.1,2.39101783]
[1720729335977,4.11538342,3105.1,3104.1,2.39101783]
[1720729336291,1.84896176,3105.0,3104.1,2.39101783]
[1720729336605,0.73357834,3105.0,3104.1,2.39101783]
[1720729336805,3.0,3105.2,3104.1,2.39101783]
[1720729336977,3.0,3105.4,3104.1,2.39101783]
[1720729337180,3.21972,3105.9,3104.2,2.3902]
[1720729337381,4.11546971,3105.8,3104.4,2.3902]
[1720729337680,3.0,3105.8,3104.6,2.3902]
[1720729337905,3.0,3105.9,3104.7,0.29402]
[1720729338103,0.17935504,3106.0,3104.7,0.29402]
[1720729338392,1.11541862,3105.9,3104.7,0.29402]
[1720729338594,3.0,3105.9,3104.7,0.29402]
[1720729338788,0.33942551,3106.0,3104.7,0.29402]
[1720729339009,1.1154098,3105.9,3104.8,0.268422]
[1720729339219,3.16007047,3106.0,3104.8,0.268422]
[1720729339381,0.16007047,3106.0,3104.9,2.3902]
[1720729339580,3.0,3106.1,3104.9,2.3902]
[1720729339885,1.11535756,3106.0,3105.0,0.2658622]
[1720729340079,0.33675571,3106.2,3105.1,0.06440051]
[1720729340283,0.16,3106.3,3105.2,2.3902]
[1720729341716,0.16,3106.3,3105.2,5.61058]
[1720729342417,0.16,3106.3,3105.2,2.3902]
[1720729342721,0.16,3106.3,3105.3,0.56750551]
[1720729342887,0.16,3106.3,3105.2,2.3902]
[1720729343317,1.11528019,3106.2,3105.2,2.3902]
[1720729343512,0.16,3106.3,3105.2,2.3902]
[1720729343811,1.11527861,3106.2,3105.2,2.3902]
[1720729344113,0.16,3106.3,3105.2,2.3902]
[1720729344300,1.11528431,3106.2,3105.3,0.23902]
[1720729344506,1.11528431,3106.1,3105.3,0.23902]
[1720729344811,0.16,3106.3,3105.3,0.23902]
[1720729345011,0.16,3106.3,3105.2,2.3902]
[1720729345012,1.11529129,3106.2,3105.2,2.3902]
[1720729345317,1.11529129,3106.1,3105.2,2.3902]
[1720729345611,1.11529129,3106.2,3105.2,2.3902]
[1720729345811,1.11529129,3106.1,3105.2,2.3902]
[1720729345992,1.11529129,3106.2,3105.2,2.65580622]
[1720729346316,0.16,3106.3,3105.2,2.3902]
[1720729346317,1.11529129,3106.1,3105.2,2.3902]
[1720729346513,0.16,3106.3,3105.2,2.3902]
[1720729346815,1.11531864,3106.2,3105.2,2.3902]
[1720729347018,1.11531588,3106.1,3105.2,2.3902]
[1720729347195,1.11531588,3106.0,3105.2,2.3902]
[1720729347512,0.16,3106.3,3105.2,2.62922]
[1720729347715,1.11532366,3106.2,3105.2,2.3902]
[1720729347918,1.11532366,3106.1,3105.2,2.3902]
[1720729348077,3.0,3106.2,3105.2,2.3902]
[1720729348078,1.11532366,3106.0,3105.2,2.3902]
[1720729348283,1.11532366,3105.9,3105.2,2.3902]
[1720729348482,1.11532366,3106.1,3105.2,2.3902]
[1720729348782,0.41153237,3106.0,3105.2,2.3902]
[1720729348984,1.11532366,3105.9,3105.2,2.3902]
[1720729349187,1.11536502,3105.8,3105.2,2.3902]
[1720729349393,0.41153237,3106.0,3105.2,2.3902]
[1720729349587,1.11536599,3105.9,3105.2,2.3902]
[1720729349788,0.41153237,3106.0,3105.2,2.3902]
[1720729350097,4.32944692,3106.2,3105.2,2.3902]
[1720729350098,1.11536753,3105.9,3105.2,2.62922]
[1720729350296,3.0,3106.2,3105.2,2.62922]
[1720729350297,3.31917501,3106.3,3105.2,2.62922]
[1720729350523,4.11522167,3106.2,3105.2,2.62922]
[1720729350704,1.11522167,3106.1,3105.2,2.62922]
[1720729351006,1.11522167,3106.1,3105.3,0.262922]
[1720729351211,1.11522167,3106.2,3105.3,0.262922]
[1720729351408,1.11523536,3106.1,3105.3,0.262922]
[1720729351716,0.31917501,3106.3,3105.3,0.262922]
[1720729351717,1.11526081,3106.0,3105.3,0.262922]
[1720729351883,0.31917501,3106.3,3105.3,0.262922]
[1720729352217,1.11526591,3106.2,3105.3,0.262922]
[1720729352521,1.11526591,3106.1,3105.2,2.3902]
[1720729352818,5.11348412,3106.3,3105.2,2.3902]
[1720729352819,2.44471283,3106.2,3105.2,2.3902]
[1720729353051,1.11526591,3106.1,3105.2,2.3902]
[1720729353228,0.54447128,3106.0,3105.2,2.3902]
[1720729353519,1.65985103,3106.0,3105.2,2.3902]
[1720729353719,1.11537975,3105.9,3105.2,2.3902]
[1720729353919,1.11537975,3105.8,3105.2,2.3902]
[1720729354119,1.11537975,3105.7,3105.2,2.3902]
[1720729354417,3.0,3105.9,3105.2,2.62922]
[1720729354624,1.11532864,3105.8,3105.2,2.62922]
[1720729354805,3.0,3106.2,3105.2,2.62922]
[1720729355126,0.7840372,3106.3,3105.2,2.62922]
[1720729355127,1.11524896,3106.1,3105.2,2.62922]
[1720729355282,1.11524896,3106.0,3105.2,2.62922]
[1720729355624,0.7840372,3106.3,3105.2,2.62922]
[1720729355927,1.49367249,3106.2,3105.2,2.3902]
[1720729356120,1.11526877,3106.1,3105.2,2.3902]
[1720729356491,3.37840372,3106.2,3105.2,2.3902]
[1720729356820,1.11529311,3106.1,3105.2,2.3902]
[1720729357018,1.11530736,3106.0,3105.2,2.3902]
[1720729357208,1.11530775,3105.9,3105.2,2.3902]
[1720729357415,0.44937111,3106.0,3105.2,2.3902]
[1720729357608,1.11530706,3105.9,3105.2,2.3902]
[1720729357801,0.44937111,3106.0,3105.2,2.3902]
[1720729358001,5.66485551,3105.9,3104.6,2.3905]
[1720729358213,1.95662315,3105.8,3104.6,2.3905]
[1720729358415,1.11530049,3105.7,3104.6,2.3905]
[1720729358795,4.11530049,3105.7,3104.6,2.3905]
[1720729358997,1.11530049,3105.6,3104.6,2.3905]
[1720729359537,1.11546721,3105.5,3104.6,2.3905]
[1720729359740,1.11546721,3105.4,3104.6,2.3905]
[1720729359947,1.11554177,3105.3,3104.6,2.3905]
[1720729360248,3.70611027,3105.6,3104.6,2.3905]
[1720729360249,1.11554177,3105.2,3104.6,2.3905]
[1720729360395,1.11554177,3105.5,3104.6,2.3905]
[1720729360601,0.61514671,3105.4,3104.6,2.3905]
[1720729360832,1.11554177,3105.3,3104.6,2.3905]
[1720729362007,0.61514671,3105.4,3104.6,2.3905]
[1720729362203,1.11561289,3105.3,3104.6,2.3905]
[1720729362423,1.11561289,3105.2,3104.6,2.3905]
[1720729362643,0.41156129,3105.1,3104.6,2.3905]
[1720729363513,3.22061,3105.1,3104.2,2.3428]
[1720729363698,4.33626886,3105.0,3104.2,2.3428]
[1720729363899,1.11563886,3104.9,3104.2,2.3428]
[1720729364349,3.22104,3104.6,3104.1,0.00081783]
[1720729364555,3.22129,3104.4,3104.1,0.00081783]
[1720729364887,4.55172336,3104.2,3104.1,0.00081783]
[1720729365059,4.55172336,3104.2,3103.2,2.4224]
[1720729365060,3.22157,3104.1,3103.2,2.4224]
[1720729365240,1.11563886,3104.0,3103.2,2.4224]
[1720729365431,4.11563886,3104.1,3103.2,2.4224]
[1720729365632,4.1667103,3104.1,3103.2,2.4224]
[1720729366320,4.5702,3104.0,3102.6,0.00082301]
[1720729366518,3.22226,3103.5,3102.6,0.00082301]
[1720729366723,3.2223,3103.4,3102.6,0.00082301]
[1720729366948,4.76083912,3103.3,3102.6,0.00082301]
[1720729367355,6.866886,3103.3,3102.6,0.00082301]
[1720729367923,10.089356,3103.3,3102.6,0.00082301]
[1720729368852,3.2225,3103.2,3102.6,0.00082301]
[1720729369059,3.0,3103.1,3102.6,0.00082301]
[1720729369281,3.84496,3103.0,3102.6,0.00082301]
[1720729369470,3.0,3102.9,3102.6,0.00082301]
[1720729369847,3.62225,3103.0,3102.6,0.00082301]
[1720729370269,3.0,3103.0,3102.6,0.00082301]
[1720729370494,3.0,3103.2,3102.6,0.00082301]
[1720729370639,0.16515436,3103.5,3102.6,0.00082301]
[1720729370640,6.44528,3103.1,3102.6,0.00082301]
[1720729370822,6.2227,3103.0,3102.6,0.00082301]
[1720729371277,3.0,3103.0,3102.6,0.00082301]
[1720729371424,0.62226,3102.9,3102.6,0.00082301]
[1720729374750,0.78226,3102.9,3102.6,0.00082301]
[1720729381985,2.3298,3102.8,3102.6,0.00082301]
[1720729382194,3.22299,3102.7,3102.6,0.00082301]
[1720729382359,3.22299,3102.7,3101.4,2.4514]
[1720729382553,7.33064,3102.6,3101.4,2.4514]
[1720729382805,4.10747,3102.6,3101.4,2.4514]
[1720729383197,7.33058,3102.6,3101.4,2.4514]
[1720729383401,4.10747,3102.6,3101.4,2.4514]
[1720729383704,7.33057,3102.6,3101.4,2.4514]
[1720729384006,1.055356,3102.5,3101.4,2.69654]
[1720729384184,3.0,3102.7,3101.4,2.69654]
[1720729384562,2.299,3102.8,3101.4,2.69654]
[1720729384563,5.4647207,3102.8,3101.4,2.69654]
[1720729385211,3.1657207,3102.8,3101.5,2.4514]
[1720729385498,0.16,3102.9,3102.0,5.67506]
[1720729385706,0.16,3102.9,3102.0,2.4514]
[1720729395988,0.16,3102.9,3102.5,3.22319]
[1720729396168,0.16,3102.9,3102.7,2.3118]
[1720729396365,0.16113907,3104.1,3102.8,3.50907]
[1720729396577,2.4376,3104.4,3102.9,3.2227]
[1720729396578,1.11605446,3104.0,3102.9,3.2227]
[1720729396796,1.11605446,3103.9,3103.0,0.55]
[1720729397005,2.6021253,3104.4,3103.0,3.77268]
[1720729397206,1.1160093,3104.3,3103.0,3.77268]
[1720729397408,1.1160093,3104.2,3103.1,0.377268]
[1720729397576,1.1160093,3104.1,3103.1,0.377268]
[1720729397777,1.1160093,3104.0,3103.1,3.599838]
[1720729397978,2.4376,3104.7,3103.2,2.3118]
[1720729398210,1.11592776,3104.6,3103.3,0.06443655]
[1720729398389,1.47128054,3104.5,3103.4,0.23762366]
[1720729398715,1.11592776,3104.4,3103.4,0.23762366]
[1720729399012,0.35535278,3104.5,3103.4,0.23762366]
[1720729399212,1.11588562,3104.4,3103.4,0.23762366]
[1720729399517,0.35535278,3104.5,3103.4,0.23762366]
[1720729399712,0.33553528,3104.4,3103.4,0.23762366]
[1720729400093,0.35535278,3104.5,3103.4,0.23762366]
[1720729404301,3.0,3104.6,3103.4,0.23762366]
[1720729404513,5.4376,3104.7,3103.4,0.23762366]
[1720729404822,3.22052,3105.1,3103.5,2.4842]
[1720729405021,4.33640923,3105.0,3103.5,2.4842]
[1720729405223,2.2692,3104.8,3103.6,0.27218237]
[1720729405393,5.49003,3104.8,3103.6,0.27218237]
[1720729405588,2.2692,3104.8,3103.6,0.27218237]
[1720729405999,5.2692,3104.8,3103.6,0.27218237]
[1720729407302,8.49002,3104.8,3103.6,0.27218237]
[1720729407508,1.15594481,3104.7,3103.5,2.4842]
[1720729407808,4.15594481,3104.7,3103.5,2.4842]
[1720729409434,7.37693481,3104.7,3103.0,3.77264]
[1720729409646,7.37693481,3104.7,3103.1,5.57497]
[1720729409839,7.37693481,3104.7,3103.2,0.55]
[1720729410131,1.28669548,3104.6,3103.2,0.55]